Cogmind - Beta 13 *** ADVENTURER MODE // 2024.03.03 @ 20:03:36 Player: Zeddi Result: Self-destructed Performance ------------- Evolutions (4) 2000 Regions Visited (7) 1400 Robots Destroyed (74) 370 Value Destroyed (2919) 2919 Prototype IDs (4) 80 Alien Tech Used (0) 0 Bonus (154) 154 TOTAL SCORE: 6923 Bonus ------- Follower Combat Kills 154 Cogmind --------- Core Integrity 434/850 Matter 15/300 Energy 100/100 System Corruption 1% Temperature Cool (74) Movement Flying (1090) Ox13 Location -6/Factory Parts ------- > --- POWER (2) -------- (None) > --- PROPULSION (4) --- Aluminum Leg Nuclear Pulse Thruster > --- UTILITY (6) ------ Huge Storage Unit Advanced Targeting Computer Improved Propulsion Shielding > --- WEAPON (3) ------- (None) > --- INVENTORY (25) --- F-cell Engine Fission Core Target Analyzer Improved Grenade Launcher Missile Launcher Peak State ------------ > --- POWER ------------ Fission Core Fusion Compressor > --- PROPULSION ------- Carbon-fiber Leg Titanium Leg Improved Carbon-fiber Leg Armored Wheel > --- UTILITY ---------- Improved Heat Sink Improved Heat Sink Improved Cooling System Improved Cooling System Huge Storage Unit Improved Medium Armor Plating > --- WEAPON ----------- Heavy Laser Gatling Laser Improved Assault Rifle > --- INVENTORY -------- Light Nuclear Core Light Angular Momentum Engine Light Angular Momentum Engine F-cell Engine Light Fission Core Aluminum Leg Carbon-fiber Leg Improved Gravmag System Gravmag Array Xenon Bombardment Thruster Nuclear Pulse Thruster Nuclear Pulse Thruster Advanced Targeting Computer Target Analyzer Improved Propulsion Shielding Medium Reactive Plating Shock Rifle Pulse Rifle EM Pulse Cannon Heavy Assault Rifle Advanced Assault Cannon Improved Grenade Launcher Missile Launcher [Rating: 61] Favorites ----------- Power Nuclear Core Engine Reinforced Deuterium Engine Power Core Nuclear Core Propulsion Wheel Treads Light Treads Leg Titanium Leg Wheel Wheel Hover Unit Gravmag System Flight Unit Nuclear Pulse Thruster Utility Improved Cooling System Device Improved Cooling System Storage Huge Storage Unit Processor Targeting Computer Protection Improved Medium Armor Plating Weapon Minigun Energy Gun Gatling Laser Energy Cannon EM Pulse Cannon Ballistic Gun Minigun Ballistic Cannon Advanced Assault Cannon Launcher Rocket Launcher Special Weapon Mining Laser Build | -11 -10 -10 -10 -9 -8 -7 -6 ------- Run | Yrd Mat Min Exi Min Mat Fac Fac Slots Evolved 8 | . . . . . 4 2 2 Power 1 | . . . . . 1 . . Propulsion 2 | . . . . . . 1 1 Utility 4 | . . . . . 2 1 1 Weapon 1 | . . . . . 1 . . Parts Attached 120 | 5 2 2 . 9 40 31 31 Power 28 | 1 2 . . 2 6 6 11 Engine 13 | 1 2 . . 2 3 3 2 Core 15 | . . . . . 3 3 9 Reactor . | . . . . . . . . Propulsion 34 | 2 . . . 1 9 12 10 Treads 4 | . . . . . 2 2 . Leg 12 | . . . . . 2 6 4 Wheel 9 | 2 . . . 1 5 . 1 Hover 6 | . . . . . . 4 2 Flight 3 | . . . . . . . 3 Utility 32 | . . 2 . 2 15 8 5 Device 15 | . . . . 2 6 5 2 Storage 1 | . . . . . 1 . . Processor 2 | . . 1 . . . . 1 Hackware . | . . . . . . . . Protection 14 | . . 1 . . 8 3 2 Artifact . | . . . . . . . . Weapon 26 | 2 . . . 4 10 5 5 Energy Gun 11 | 1 . . . . 5 3 2 Energy Cannon 1 | . . . . . . . 1 Ballistic Gun 10 | 1 . . . 2 4 2 1 Ballistic Cannon 1 | . . . . . . . 1 Launcher 2 | . . . . 1 1 . . Special Weapon 1 | . . . . 1 . . . Impact Weapon . | . . . . . . . . Slashing Weapon . | . . . . . . . . Piercing Weapon . | . . . . . . . . Special Melee Weapon . | . . . . . . . . Unidentified Prototypes 2 | . . . . . 1 . 1 Parts Lost 52 | . . 1 . 8 9 6 28 Power 10 | . . . . 2 1 1 6 Propulsion 16 | . . 1 . 1 3 3 8 Utility 11 | . . . . 2 2 1 6 Weapon 15 | . . . . 3 3 1 8 Highest Loss Streak 27 | . . 1 . 8 4 3 27 To Critical Strikes 1 | . . . . . . 1 . Average Slot Usage (%) 91 | . 71 77 85 70 90 98 92 Engine 5 | . 14 14 14 12 4 5 4 Core 8 | . . . . . 11 8 7 Treads 1 | . . . . . 2 2 . Leg 7 | . . . . . . 6 19 Wheel 6 | . 28 20 14 11 10 . 3 Hover 4 | . . . . . . 12 . Device 18 | . . . . 2 14 22 22 Storage 6 | . . . . . 9 7 6 Protection 8 | . . 7 14 10 11 7 5 Energy Gun 9 | . 14 14 14 9 7 8 12 Ballistic Gun 12 | . 14 14 14 12 17 13 5 Naked Turns . | . . . . . . . . Heaviest Build 133 | 6 8 11 11 13 114 124 133 Greatest Support 48 | 20 20 20 10 10 20 45 48 Greatest Overweight (x) 12 | . . 1 1 3 11 12 10 Average Overweight (x) 5 | . . . 1 . 8 4 6 Largest Inventory Capacity 25 | 5 5 5 5 5 25 25 25 Average Capacity 22 | 5 5 5 5 5 25 25 25 Most Carried 25 | 3 5 5 5 5 19 23 25 Average Carried 14 | 1 3 5 5 4 11 16 18 Final Capacity 25 | 5 5 5 5 5 25 25 25 Final Carried 19 | 1 5 5 5 4 19 13 5 Class Distribution -------------------- 67% | Tank 15% | Scavenger-Tank 12% | Mutant 3% | Scavenger-Mutant Dominant Class ---------------- Mutant | -10/Materials Mutant | -10/Mines Mutant | -10/Exiles Mutant | -9/Mines Tank | -8/Materials Tank | -7/Factory Tank | -6/Factory Resources | -11 -10 -10 -10 -9 -8 -7 -6 ----------- Run | Yrd Mat Min Exi Min Mat Fac Fac Matter Collected 1882 | 250 19 22 . 42 698 663 188 Remotely . | . . . . . . . . Salvage Created 2836 | . 142 178 . 84 824 763 845 Parts 157 | . 11 8 . 12 55 42 29 Haulers Intercepted . | . . . . . . . . Recyclers Shooed 1 | . . . . . 1 . . Parts Field Recycled . | . . . . . . . . Retrieved Matter . | . . . . . . . . Parts Self-Destructed . | . . . . . . . . Prevented . | . . . . . . . . Kills | -11 -10 -10 -10 -9 -8 -7 -6 ------- Run | Yrd Mat Min Exi Min Mat Fac Fac Combat Hostiles Destroyed 66 | . 5 4 . 7 19 17 14 Guns 55 | . 5 3 . 3 15 17 12 Cannons 1 | . . . . . . . 1 AOE 8 | . . . . 4 4 . . Classes Destroyed 12 | . 2 . . 3 4 2 1 Worker 1 | . . . . . . . 1 Builder 3 | . . . . 1 2 . . Tunneler 2 | . . . . 1 1 . . Recycler 1 | . . . . . 1 . . Watcher 6 | . . . . . 4 1 1 Swarmer 9 | . 3 . . 2 4 . . Grunt 32 | . 2 4 . . 10 9 7 Brawler 1 | . . . . . . 1 . Sentry 6 | . . . . . 3 2 1 Hunter 8 | . . . . . 2 1 5 Programmer 5 | . . . . . . 4 1 Assembled 5 | . . . . 5 . . . Best Kill Streak 9 | . 3 2 . 4 8 4 9 Combat Bots Only 8 | . 3 2 . 3 6 4 8 Max Kills in Single Turn 5 | . 1 1 . 3 5 2 1 Gunslinging 1 | . . . . . . 1 . Exploded 3 | . . . . 3 3 . . Melee . | . . . . . . . . Uniques/NPCs Destroyed . | . . . . . . . . Combat | -11 -10 -10 -10 -9 -8 -7 -6 -------- Run | Yrd Mat Min Exi Min Mat Fac Fac Hostile Shots Fired 851 | . 18 17 . 36 135 169 476 Missed 245 | . 6 4 . 12 27 57 139 Damage Taken 6385 | . 88 118 . 373 1100 1201 3505 Core 761 | . 16 24 . 62 125 118 416 Absorbed by Shields . | . . . . . . . . Redirected to Shielding 44 | . . . . . . . 44 Ignored by Resistances 2059 | . 30 38 . 107 330 358 1196 Regen/Repaired (Parts) 37 | . . . . . . 37 . Core Remaining (%) 79 | 100 . . . 59 77 83 . Volleys Fired 163 | . 10 13 . 8 58 37 37 Largest 3 | . 2 2 . 2 3 3 3 Hottest 174 | . 70 70 . 80 113 174 174 Shots Fired 411 | . 20 26 . 12 145 102 106 Gun 391 | . 20 26 . 9 138 102 96 Cannon 10 | . . . . . . . 10 Launcher 10 | . . . . 3 7 . . Special . | . . . . . . . . Kinetic 232 | . 10 13 . 4 102 66 37 Thermal 140 | . 10 13 . 5 18 36 58 Explosive 10 | . . . . 3 7 . . Electromagnetic 29 | . . . . . 18 . 11 Robot Hit Streak 27 | . 4 18 . 5 24 22 27 Robot Miss Streak 3 | . 3 1 . 2 2 3 1 Penetration Max . | . . . . . . . . Secondary Targets 15 | . 1 1 . 1 3 4 5 Max Gunslinging Chain 1 | . 1 1 . 1 1 1 1 Shots Hit Robots 337 | . 12 24 . 8 121 87 85 Core Hits 197 | . 9 9 . 14 68 50 47 Critical Kills 2 | . . . . . . 1 1 Critical Parts Destroyed . | . . . . . . . . Critical Strikes 14 | . 2 3 . . 2 3 4 Burn 12 | . 2 3 . . 2 2 3 Destroy 2 | . . . . . . 1 1 Melee Attacks . | . . . . . . . . Impact . | . . . . . . . . Slashing . | . . . . . . . . Piercing . | . . . . . . . . Sneak Attacks . | . . . . . . . . Combat Hostiles . | . . . . . . . . Follow-up Attacks . | . . . . . . . . Damage Inflicted 6516 | . 131 246 . 318 2293 1805 1723 Guns 5409 | . 131 246 . 53 1666 1805 1508 Cannons 202 | . . . . . . . 202 Explosions 891 | . . . . 264 627 . . Melee . | . . . . . . . . Ramming 14 | . . . . 1 . . 13 Kinetic 2832 | . 43 96 . 16 1168 1126 383 Thermal 2304 | . 88 150 . 37 268 679 1082 Explosive 891 | . . . . 264 627 . . Electromagnetic 475 | . . . . . 230 . 245 Impact . | . . . . . . . . Slashing . | . . . . . . . . Piercing . | . . . . . . . . Highest Corruption 15 | . . . . 15 . 2 1 Average Corruption 1 | . . . . 10 . 1 1 Corruption Purged . | . . . . . . . . Corruption Blocked . | . . . . . . . . Effects 12 | . . . . 5 . 6 1 Message Errors 3 | . . . . 1 . 2 . Matter Fused 3 | . . . . 2 . . 1 Energy Discharges 2 | . . . . . . 2 . Data Loss (minor) 2 | . . . . 1 . 1 . Weapon Failures 2 | . . . . 1 . 1 . Overload Shots . | . . . . . . . . Overflow Damage 54 | . . . . 42 12 . . Projectiles . | . . . . . . . . Explosions 54 | . . . . 42 12 . . Melee . | . . . . . . . . Knockbacks 3 | . . . . . . . 3 Impact . | . . . . . . . . Kinetic 2 | . . . . . . . 2 Secondary 1 | . . . . . . . 1 Self-Inflicted Damage 92 | . . . . 80 6 . 6 Shots 4 | . . . . 3 1 . . Rammed 3 | . . . . 1 . . 2 Targets Rammed 3 | . . . . 1 . . 2 Kicked . | . . . . . . . . Crushed . | . . . . . . . . Highest Temperature 513 | . 84 185 . 38 237 3 513 Average Temperature 85 | . 42 68 . 16 71 3 217 Received Heat Transfer 1968 | . 54 105 . . 531 444 834 Effects 6 | . . . . . 3 . 3 Shutdowns 2 | . . . . . . . 2 Interference 3 | . . . . . 3 . . Short Circuit 1 | . . . . . . . 1 Siege Activations . | . . . . . . . . Robots Corrupted . | . . . . . . . . Combat Hostiles . | . . . . . . . . Parts Fried 2 | . . . . . 1 . 1 Impact Corruptions . | . . . . . . . . Robots Melted 2 | . . 1 . . . . 1 Combat Hostiles 2 | . . 1 . . . . 1 Parts Melted 10 | . . 1 . . 1 1 7 Heat Transferred 5996 | . 407 666 . 111 740 1577 2495 Parts Sabotaged . | . . . . . . . . Parts Stolen . | . . . . . . . . Parts Stripped . | . . . . . . . . Power Chain Reactions . | . . . . . . . . Alert | -11 -10 -10 -10 -9 -8 -7 -6 ------- Run | Yrd Mat Min Exi Min Mat Fac Fac Peak Influence 347 | . 125 131 . 42 347 127 181 Initial 41 | . . 41 . . . . 12 Average 80 | . 47 112 . 6 161 48 43 Maximum Alert Level 1 | . . . . . 1 . . Low Security (%) 87 | 100 100 100 . 100 58 100 100 Level 1 12 | . . . . . 41 . . Level 2 . | . . . . . . . . Level 3 . | . . . . . . . . Level 4 . | . . . . . . . . Level 5 . | . . . . . . . . High Security . | . . . . . . . . Max Security . | . . . . . . . . Squads Dispatched 17 | . 1 . . . 4 7 5 Investigation 2 | . 1 . . . . 1 . Extermination 6 | . . . . . . 4 2 Reinforcement 8 | . . . . . 4 1 3 Assault . | . . . . . . . . Garrison 1 | . . . . . . 1 . Intercept . | . . . . . . . . Searches Triggered . | . . . . . . . . Construction Impeded 2 | . . . . . 1 . 1 Haulers Reinforced . | . . . . . . . . Active Scanning Responses . | . . . . . . . . Cargo Convoy Interrupts . | . . . . . . . . Stealth | -11 -10 -10 -10 -9 -8 -7 -6 --------- Run | Yrd Mat Min Exi Min Mat Fac Fac Distress Signals 2 | . . . . . 2 . . Communications Jammed . | . . . . . . . . Distress Signals . | . . . . . . . . Times Spotted 92 | . 6 4 . 8 27 20 27 Peak Tracking Total 10 | . 3 2 . 8 6 4 10 Tactical Retreats 2 | . . . . . 1 1 . Traps | -11 -10 -10 -10 -9 -8 -7 -6 ------- Run | Yrd Mat Min Exi Min Mat Fac Fac Traps Triggered 4 | . 1 . . . 1 2 . Indirectly . | . . . . . . . . Trap Hack Attempts . | . . . . . . . . Triggered . | . . . . . . . . Disarmed . | . . . . . . . . Reprogrammed . | . . . . . . . . Reused . | . . . . . . . . Traps Extracted . | . . . . . . . . Installed . | . . . . . . . . Triggered . | . . . . . . . . Machines | -11 -10 -10 -10 -9 -8 -7 -6 ---------- Run | Yrd Mat Min Exi Min Mat Fac Fac Machines Disabled 3 | . . . . . 3 . . Max in Single Turn 1 | . . . . . 1 . . Machines Repaired . | . . . . . . . . Machines Dismantled . | . . . . . . . . Machines Sabotaged . | . . . . . . . . Overloaded Fab Kills . | . . . . . . . . Hacking | -11 -10 -10 -10 -9 -8 -7 -6 --------- Run | Yrd Mat Min Exi Min Mat Fac Fac Machines Accessed 8 | . 2 . . . 3 2 1 Terminals 6 | . 2 . . . 2 1 1 Fabricators . | . . . . . . . . Repair Stations 1 | . . . . . . 1 . Recycling Units . | . . . . . . . . Scanalyzers 1 | . . . . . 1 . . Garrison Access . | . . . . . . . . Total Hacks 21 | . 3 . . . 10 7 1 Successful 17 | . 2 . . . 9 5 1 Failed 4 | . 1 . . . 1 2 . Catastrophic . | . . . . . . . . Database Lockouts . | . . . . . . . . Manual . | . . . . . . . . Terminals 16 | . 3 . . . 8 4 1 Fabricators . | . . . . . . . . Repair Stations 3 | . . . . . . 3 . Recycling Units . | . . . . . . . . Scanalyzers 2 | . . . . . 2 . . Garrison Access . | . . . . . . . . Terminal Hacks 14 | . 2 . . . 8 3 1 Record 6 | . . . . . 5 1 . Prototype ID Bank 1 | . . . . . 1 . . Open DSF 1 | . . . . . . . 1 Emergency Access Points 1 | . 1 . . . . . . Terminal Index 1 | . . . . . 1 . . Alert Level 2 | . . . . . 1 1 . Unreport Threat 1 | . . . . . . 1 . Dispatch Records 1 | . 1 . . . . . . Fabricator Hacks . | . . . . . . . . Repair Station Hacks 2 | . . . . . . 2 . Scan Component 1 | . . . . . . 1 . Repair 1 | . . . . . . 1 . Recycling Unit Hacks . | . . . . . . . . Scanalyzer 1 | . . . . . 1 . . Insert Component 1 | . . . . . 1 . . Garrison Access Hacks . | . . . . . . . . Unauthorized Hacks . | . . . . . . . . Terminals . | . . . . . . . . Fabricators . | . . . . . . . . Repair Stations . | . . . . . . . . Recycling Units . | . . . . . . . . Scanalyzers . | . . . . . . . . Garrison Access . | . . . . . . . . Data Cores Recovered . | . . . . . . . . Used . | . . . . . . . . Hacking Detections 3 | . 1 . . . 1 1 . Full Trace Events . | . . . . . . . . Feedback Events . | . . . . . . . . Feedback Blocked . | . . . . . . . . Robot Schematics Acquired . | . . . . . . . . Robots Built . | . . . . . . . . Authchips . | . . . . . . . . Time . | . . . . . . . . Total Robot Build Rating . | . . . . . . . . Part Schematics Acquired . | . . . . . . . . Parts Built . | . . . . . . . . Authchips . | . . . . . . . . Time . | . . . . . . . . Total Part Build Rating . | . . . . . . . . Parts Repaired 1 | . . . . . . 1 . Time 44 | . . . . . . 44 . Parts Recycled . | . . . . . . . . Recycled Matter . | . . . . . . . . Retrieved Matter . | . . . . . . . . Retrieved Components . | . . . . . . . . Parts Scanalyzed . | . . . . . . . . Part Schematics Acquired . | . . . . . . . . Parts Damaged . | . . . . . . . . Bothacking | -11 -10 -10 -10 -9 -8 -7 -6 ------------ Run | Yrd Mat Min Exi Min Mat Fac Fac Used RIF Installer . | . . . . . . . . Robots Hacked . | . . . . . . . . Non-combat . | . . . . . . . . Combat . | . . . . . . . . Robot Hacks Applied . | . . . . . . . . Relay Couplers Released . | . . . . . . . . Fabnet Peak Effective % . | . . . . . . . . Robots Rewired . | . . . . . . . . Allies Hacked 1 | . . . . . . . 1 Hacks Repelled . | . . . . . . . . Allies | -11 -10 -10 -10 -9 -8 -7 -6 -------- Run | Yrd Mat Min Exi Min Mat Fac Fac Total Allies 3 | . . . . . . 3 . Largest Group 3 | . . . . . . 3 3 Highest-Rated Group 93 | . . . . . . 93 93 Highest-Rated Ally 31 | . . . . . . 31 31 Total Orders . | . . . . . . . . Ally Attacks 41 | . . . . . . . 41 Total Damage 568 | . . . . . . . 568 Kills 6 | . . . . . . . 6 Allies Corrupted . | . . . . . . . . Allies Melted . | . . . . . . . . Intel | -11 -10 -10 -10 -9 -8 -7 -6 ------- Run | Yrd Mat Min Exi Min Mat Fac Fac Robot Analysis Total . | . . . . . . . . Derelict Logs Recovered . | . . . . . . . . Drone Launches . | . . . . . . . . Drone Recoveries . | . . . . . . . . Exploration | -11 -10 -10 -10 -9 -8 -7 -6 ------------- Run | Yrd Mat Min Exi Min Mat Fac Fac Turns Passed 5477 | 56 135 144 31 226 1641 1753 1491 Spaces Moved 2212 | 63 123 117 33 212 640 499 525 Core 46 | 17 . . . 29 . . . Treads 3 | . . . . . . 3 . Legs 358 | . . . . . . 160 198 Wheels 1538 | 46 123 117 33 183 640 72 324 Hover 266 | . . . . . . 264 2 Flight 1 | . . . . . . . 1 Fastest Speed 50 | 50 80 80 95 50 140 230 225 Average Speed 209 | 71 80 89 95 89 214 301 246 Slowest Speed 780 | 80 80 95 95 200 245 780 607 Overloaded Moves . | . . . . . . . . Propulsion Burnouts . | . . . . . . . . Robots Hopped . | . . . . . . . . Cave-ins Triggered 1 | . . . . . . . 1 Exploration Rate (%) 25 | 8 31 32 8 51 40 17 16 Regions Visited 7 Branch Regions 3 Pre-discovered Areas 1 | . . . . 1 . . . Known Exits Taken . | . . . . . . . . Unknown Exits Taken 7 | 1 1 1 1 1 1 1 . Scrap Searched 2 | . . 1 . 1 . . . Spaces Dug . | . . . . . . . . Terrain Destroyed 59 | . . . . 22 36 . 1 Melee . | . . . . . . . . Projectile 1 | . . . . . . . 1 AOE 58 | . . . . 22 36 . . Terrain Rammed . | . . . . . . . . Walls Destroyed . | . . . . . . . . Machines Disabled . | . . . . . . . . Actions | -11 -10 -10 -10 -9 -8 -7 -6 --------- Run | Yrd Mat Min Exi Min Mat Fac Fac Total 2719 | 73 141 131 32 232 795 683 632 Wait 60 | . 2 . . . 3 41 14 Move 2205 | 62 122 116 32 211 639 498 525 Hop . | . . . . . . . . Pick Up 111 | 6 4 . . 3 42 39 17 Fast Attach 6 | . . 2 . 4 . . . Attach 55 | 5 . . . 4 15 10 21 Detach 1 | . . . . . . 1 . Swap 59 | . 2 . . 1 25 21 10 Drop 56 | . 1 . . . 13 36 6 Fire 163 | . 10 13 . 8 58 37 37 Melee . | . . . . . . . . Ram 3 | . . . . 1 . . 2 Kick . | . . . . . . . . Crush . | . . . . . . . . Escape Stasis . | . . . . . . . . Rewire . | . . . . . . . . Trap . | . . . . . . . . Miscellaneous . | . . . . . . . . Route ------- -11/Scrapyard -10/Materials -10/Mines -10/Exiles -9/Mines -8/Materials -7/Factory -6/Factory History --------- Turn | Location | Event 2 | -11/Scrapyard | Met Revision 17 49 | -11/Scrapyard | Discovered new exit (range 8) 57 | -11/Scrapyard | Entered Materials 179 | -10/Materials | Discovered new exit (range 9) 192 | -10/Materials | Entered Mines 287 | -10/Mines | Met a Derelict bent on vengeance 301 | -10/Mines | Found a hidden stash of uninstalled traps 307 | -10/Mines | Build established: Mutant 331 | -10/Mines | Deemed a non-threat by the Exiles lab entrance 331 | -10/Mines | Discovered new exit (range 5) 336 | -10/Mines | Entered Exiles 355 | -10/Exiles | Discovered new exit (range 15) 367 | -10/Exiles | Entered Mines 368 | -9/Mines | Learned location of Storage (-7) 402 | -9/Mines | Assembled infested the area 535 | -9/Mines | System corruption reached 10% 536 | -9/Mines | Received a Rocket Launcher from a helpful Derelict 580 | -9/Mines | Lost 8 parts (2p1n2u3w) 589 | -9/Mines | Discovered new exit (range 6) 593 | -9/Mines | Entered Materials 593 | -8/Materials | Evolved 4 slots: Power x1, Utility x2, Weapon x1 834 | -8/Materials | Lost 4 parts (1p1n2w) 1163 | -8/Materials | Lost 3 parts (2n1w) 1511 | -8/Materials | Build established: Tank 2027 | -8/Materials | Discovered new exit (range 13) 2234 | -8/Materials | Entered Factory 2234 | -7/Factory | Evolved 2 slots: Propulsion x1, Utility x1 2818 | -7/Factory | Garrison activated, responded to threat 2964 | -7/Factory | Repaired Gravmag System 3629 | -7/Factory | Lost 3 parts (2n1w) 3929 | -7/Factory | Allied Derelicts emerged from ambush trap array 3955 | -7/Factory | Discovered new exit (range 11) 3987 | -7/Factory | Entered another Factory area 3987 | -6/Factory | Accompanied by 3 allies 3987 | -6/Factory | Evolved 2 slots: Propulsion x1, Utility x1 4269 | -6/Factory | Identified exit to DSF 4801 | -6/Factory | Build established: Scavenger-Tank 5264 | -6/Factory | Build established: Tank 5414 | -6/Factory | Crushed by falling debris 5436 | -6/Factory | Destroyed 8 combat bots 5478 | -6/Factory | Self-destructed Last Messages --------------- 05460_ K-01 Serf collects debris. 05461_ Wall collapses. 05462_ Power failure, Lgt. Fission Core shutdown. 05462_ K-01 Serf cleans the Fusion Modulator. 05462_ K-01 Serf collects debris. 05462_ Penetrated by Slug. 05463_ Dropped Broken Gravmag Array. 05465_ K-01 Serf cleans the Fusion Modulator. 05465_ K-01 Serf collects debris. 05465_ Penetrated by Slug. 05465_ Pulse Rifle destroyed. 05465_ Penetrated by Slug. 05469_ Adv. Assault Cannon destroyed. [Achievement: Universal Adapter] 05472_ Penetrated by Slug. 05474_ Nuclear Pulse Thruster destroyed. 05475_ Fusion Compressor destroyed. 05475_ Lgt. Fission Core destroyed. 05477_ Critical hit (Burn: +37). Map ----- +----------------------------------------------------+ | ?????????# """ #?????????????????????????????????? | | ?????????# """ #?????????????????????????????????? | | ########?# """ #?????????????????????????????????? | | # #?# #?????????????????????????????????? | | # #?#] #?????????????????????????????????? | | # #?# #?????????????????????????????????? | | + #?# #?????????????????????????????????? | | # ####+########?????????????????????????????? | | # % / + #?????????????????????????????? | | ####+###### ## """#?????????????????????????????? | | ?# ???## ## """#?????????????????????????????? | | ## " ### # F"#?????????????????????????????? | | "T% + ""#?????????????????????????????? | | ## ### # #?????????????????????????????? | | ?# #?## ## #?????????????????????????????? | | ?### ###??# ############+#########???????????????? | | ???# #????# #???????????????? | | ???? ?????# #???????????????? | | ????#?????# #???????????????? | | ??????????# #???????????????? | | ??????????+ #???????????????? | | ??????????#+####+########### #???????????????? | | ??????????# !===%=#???# #???????????????? | | ??????????# !!![!!##??# #???????????????? | | ??????????# **g*ku#;###[[ #???????????????? | | ??????????# """ """![*uh[@g%==[ #???????????????? | | ??????????# """ """!!%!####=h% #???????????????? | | ??????????# """ """=!*%#???#[[ ###########?????? | | ??????????# !!#???# # #?????? | | ??????????# """ """ #???# # #?????? | | ??????????# """ """ #???# # #?????? | | ??????????? """ """ #???# # #?????? | | ???????????? #???# # #?????? | | ???????????? #???# + #?????? | | ????????????############???# # #?????? | | ???????????????????????????# # #?????? | | ???????????????????????????# ####+######?????? | | ???????????????????????????# #????????? | | ???????????????????????????# ???? | | ???????????????????????????# | | ???????????????????????????+ | | ???????????????????????????# ##### | | ???????????????????????????# ########????? | | ???????????????????????????# T??????????????## | | ???????????????????????????# ???????????????? | | ???????????????????????????# #???????????????? | | ???????????????????????????# ????????????????? | | ???????????????????????????+ ????????????????? | | ???????????????????????????# ????????????????????? | | ?????????????????????????????????????????????????? | +----------------------------------------------------+ Best States ------------- Heat Dissipation 119 Energy Generation 38 Energy Capacity 380 Matter Stores 300 Matter Capacity 300 Sight Range 16 Robot Scan Range 15 Terrain Scan Range 14 Terrain Scan Density 10 Armor Coverage 530 Resistance: KI 50 Resistance: TH 20 Resistance: EX 20 Resistance: EM 20 Resistance: I 20 Resistance: S 20 Resistance: P 20 Propulsion Shielding 66 Evasion (%) 50 Targeting Accuracy 8 Recoil Reduction 2 Offensive Hacking 10 Item Schematics ----------------- None Robot Schematics ------------------ None Fabricated ------------ Nothing Alien Tech Used ----------------- None Achievements -------------- Everything Is Under Control Universal Adapter Challenges ------------ None Game ------ Seed LinearThermalJammer Manual? 0 Play Time 00:59:26 Cumulative 7.1 hours Start 2024.03.03 @ 19:03:49 End 2024.03.03 @ 20:03:36 Sessions 1 Manual Loads 0 Difficulty Adventurer Special Mode None Game No. 13 Rogue 0 Adventurer 6 Explorer 7 Win Type - Total 0 Types 0/0/0/0/0/0/0/0/0 Lore% 16 Gallery% 15 Achievement% 15 Wizard Run 0 Options --------- Layout 1 ASCII 0 Keyboard 0 Movement Mouse Keybinds 0 Fullscreen 1 Font 24/Crisp Map View 25x17 Zoom Use 8% Tactical HUD 1 Map Filters NONE Filters NONE Steam 1 RUN: b764649a-baa9-485c-b42b-7d0ef466f433